Workbook

Sheet Sheet1
A1: 2-parameter linear power/inverse time model
A2: Min | B2: Time (s) | C2: AvgPower | D2: p=w'/t+CP | E2: res | F2: SQ | G2: To run solver manually
A3: =B3/60 -> 3 | B3: 180 | C3: 427 | D3: =($C$10/B3)+$C$9 -> 427.6925145 | E3: =D3-C3 -> 0.6925144923 | F3: =E3^2 -> 0.479576322 | G3: Set F6 to minimum by changing cells "B8:B9"
A4: =B4/60 -> 7 | B4: 420 | C4: 367 | D4: =($C$10/B4)+$C$9 -> 364.0914066 | E4: =D4-C4 -> -2.908593438 | F4: =E4^2 -> 8.459915787
A5: =B5/60 -> 12 | B5: 720 | C5: 342 | D5: =($C$10/B5)+$C$9 -> 344.2160603 | E5: =D5-C5 -> 2.216060334 | F5: 4.910923404
B9: CP (W) | C9: 316.3905756 | E9: least sq | F9: =SUM(F3:F7) -> 13.85041551
B10: W' (J) | C10: 20034.349
A12: 2-parameter linear work/time model
A13: Min | B13: Time (s) | C13: AvgPower | D13: Work | E13: res | F13: SQ | G13: To run solver manually
A14: =B14/60 -> 3 | B14: =B3 -> 180 | C14: =C3 -> 427 | D14: =$C$21+($C$20*B14) -> 77597.70276 | E14: =D14-(B14*C14) -> 737.7027608 | F14: =E14^2 -> 544205.3633 | G14: Set F20 to minimum by changing cells "B20:B21"
A15: =B15/60 -> 7 | B15: =B4 -> 420 | C15: 367 | D15: =$C$21+($C$20*B15) -> 152812.1262 | E15: =D15-(B15*C15) -> -1327.873756 | F15: =E15^2 -> 1763248.712
A16: =B16/60 -> 12 | B16: 720 | C16: 342 | D16: 246830.1556 | E16: 590.155598 | F16: 348283.6299
B20: CP (W) | C20: 313.3934312 | E20: least sq | F20: =SUM(F14:F18) -> 2655737.705
B21: W' (J) | C21: 21186.88515
A23: 2-parameter nonlinear model
A24: Min | B24: Time (s) | C24: AvgPower | D24: p=w'/t+CP | E24: res | F24: SQ | G24: To run solver manually
A25: =A3 -> 3 | B25: =B3 -> 180 | C25: =C3 -> 427 | D25: =C$32/(C25-C$31) -> 197.6365337 | E25: =D25-B25 -> 17.63653372 | F25: =E25^2 -> 311.0473217 | G25: Set F31 to minimum by changing cells "B31:B32"
A26: =A4 -> 7 | B26: =B4 -> 420 | C26: 367 | D26: =C$32/(C26-C$31) -> 405.793304 | E26: -14.20669604 | F26: =E26^2 -> 201.8302124
A27: =A5 -> 12 | B27: 720 | C27: 342 | D27: =C$32/(C27-C$31) -> 723.1406178 | E27: =D27-B27 -> 3.140617818 | F27: 9.863480276
B31: CP (W) | C31: 310.0323981 | E31: least sq | F31: =SUM(F25:F29) -> 522.7410144
B32: W' (J) | C32: 23117.0714
A36: Mean | B36: CP (W) | C36: =AVERAGE(C9,C20,C31) -> 313.272135
B37: W' (J) | C37: =AVERAGE(C10,C21,C32) -> 21446.10185

Sheet Sheet2

Sheet Sheet3
